bitfinex/quotes_SOLUSD_20240917
["timestamp","ask_amount","ask_price","bid_price","bid_amount"]
[1726584156633,0.2295258,134.33,134.3,18.6147]
[1726584157517,0.2295258,134.33,134.32,7.4449]
[1726584157724,0.2295258,134.33,134.32,7.69588]
[1726584157935,0.2295258,134.33,134.3,18.74019]
[1726584158140,0.2295258,134.33,134.31,0.25098]
[1726584158348,0.2295258,134.33,134.31,0.12549]
[1726584158535,7.6739258,134.33,134.29,7.4464]
[1726584158745,7.6740258,134.33,134.28,7.57239]
[1726584159046,0.2295258,134.33,134.32,7.57039]
[1726584159649,0.2295258,134.33,134.31,18.6129]
[1726584159839,0.2295258,134.33,134.29,7.57179]
[1726584160157,0.2295258,134.33,134.29,7.69728]
[1726584160374,0.2295258,134.33,134.3,7.4459]
[1726584161157,0.2295258,134.33,134.29,7.57189]
[1726584161452,7.6739258,134.33,134.29,0.12549]
[1726584161651,7.4459,134.31,134.26,7.4477]
[1726584161881,0.2295258,134.33,134.28,7.4466]
[1726584161882,27.6742258,134.33,134.28,7.4466]
[1726584162061,20.2295258,134.33,134.27,18.6189]
[1726584162236,7.4462,134.3,134.22,74.5956366]
[1726584162653,7.4467,134.29,134.25,18.6213]
[1726584162835,20.0,134.3,134.24,7.4491]
[1726584163042,7.4467,134.29,134.22,37.25]
[1726584163357,7.4472,134.28,134.24,26.0722]
[1726584163538,7.4472,134.28,134.24,18.6231]
[1726584163736,1.48774842,134.29,134.22,7.4503]
[1726584163932,7.4478,134.27,134.22,7.4503]
[1726584164145,7.4472,134.28,134.23,7.4498]
[1726584164543,7.4472,134.28,134.24,7.4493]
[1726584164742,20.0,134.3,134.23,18.6245]
[1726584165050,7.4481,134.27,134.23,18.6245]
[1726584165359,7.4481,134.27,134.19,37.2589]
[1726584165360,7.4486,134.26,134.2,18.628]
[1726584165766,7.4478,134.27,134.23,7.4497]
[1726584166270,7.4472,134.28,134.22,18.6257]
[1726584166568,7.4467,134.29,134.25,7.4487]
[1726584167448,7.4467,134.29,134.24,26.0722]
[1726584167648,7.4471,134.28,134.24,26.0722]
[1726584167946,20.0,134.3,134.23,7.4494]
[1726584168152,7.4472,134.28,134.23,7.4494]
[1726584168551,20.0,134.3,134.22,37.2503]
[1726584168862,27.4463,134.3,134.26,7.4478]
[1726584169245,27.4463,134.3,134.27,0.86149266]
[1726584169571,7.4466,134.29,134.25,26.0703]
[1726584169863,0.2295258,134.3,134.26,7.4481]
[1726584170049,0.2295258,134.3,134.27,18.6185]
[1726584170248,0.2295258,134.3,134.27,26.0659]
[1726584170445,0.2295258,134.3,134.27,18.6185]
[1726584170854,20.2295258,134.3,134.24,26.19649]
[1726584171061,7.4474,134.28,134.25,0.12549]
[1726584171537,7.4474,134.28,134.24,26.071]
[1726584171742,1.48774842,134.27,134.21,18.627]
[1726584171936,1.48774842,134.29,134.21,18.627]
[1726584172257,7.4488,134.25,134.21,26.0778]
[1726584172563,18.6182,134.28,134.21,26.0778]
[1726584172564,7.4484,134.26,134.21,26.0778]
[1726584172772,7.4484,134.26,134.22,7.4502]
[1726584173065,20.2295258,134.3,134.23,7.4498]
[1726584173066,7.4477,134.27,134.23,7.4498]
[1726584173947,7.4467,134.29,134.24,0.12549]
[1726584174263,20.2295258,134.3,134.26,7.448]
[1726584174656,7.6758258,134.3,134.26,7.448]
[1726584174965,6.1484,134.31,134.28,7.447]
[1726584174966,5.3779258,134.31,134.28,7.447]
[1726584175175,5.3779258,134.31,134.24,0.12549]
[1726584175345,5.3779258,134.31,134.23,0.25098]
[1726584175741,5.3779258,134.31,134.28,7.4468]
[1726584175940,5.3779258,134.31,134.28,7.4466]
[1726584177247,7.447,134.29,134.25,7.4482]
[1726584177442,5.3779258,134.31,134.23,0.25098]
[1726584177664,7.4461,134.3,134.26,7.4479]
[1726584179067,5.3779258,134.31,134.27,18.6186]
[1726584179246,5.3779258,134.31,134.27,26.0661]
[1726584179247,12.8233258,134.31,134.27,26.0661]
[1726584179668,5.3779258,134.31,134.28,7.447]
[1726584180374,12.8234258,134.31,134.27,18.6186]
[1726584180677,7.4461,134.3,134.25,7.57409]
[1726584180884,1.48774842,134.29,134.24,26.0712]
[1726584181050,7.448,134.27,134.23,7.4497]
[1726584181255,7.4488,134.25,134.21,26.0768]
[1726584181454,7.4486,134.26,134.22,7.4504]
[1726584181966,7.4492,134.25,134.21,18.6263]
[1726584182356,7.4494,134.24,134.2,7.7123813]
[1726584182654,7.4489,134.25,134.21,7.4508]
[1726584182859,20.0,134.25,134.2,0.2612813]
[1726584183054,15.0444,134.3,134.2,0.2612813]
[1726584183273,20.0,134.27,134.21,0.12549]
[1726584183460,1.48774842,134.26,134.21,18.6263]
[1726584183660,20.0,134.27,134.21,18.6263]
[1726584184067,1.48774842,134.26,134.21,26.077]
[1726584184272,7.449,134.25,134.21,26.077]
[1726584184869,1.48774842,134.26,134.2,0.2612813]
[1726584185055,18.6194,134.27,134.2,0.2612813]
[1726584185056,7.45,134.23,134.2,0.2612813]
[1726584185264,7.4495,134.24,134.2,0.2612813]
[1726584186070,7.4505,134.22,134.2,0.2612813]
[1726584186263,1.48774842,134.26,134.2,0.2612813]
[1726584186264,7.45,134.23,134.2,0.2612813]
[1726584186459,27.4494,134.24,134.2,7.7126813]
[1726584186658,28.93714842,134.24,134.2,7.7126813]
[1726584186897,27.4494,134.24,134.2,7.7126813]
[1726584187271,28.93714842,134.24,134.2,7.7126813]
[1726584187665,27.4494,134.24,134.2,7.7126813]
[1726584188273,28.93714842,134.24,134.2,7.7126813]
[1726584188478,27.4494,134.24,134.2,7.7126813]
[1726584188868,28.93714842,134.24,134.2,7.7126813]
[1726584189497,8.93764842,134.23,134.2,0.2612813]
[1726584190169,1.48774842,134.23,134.2,0.2612813]
[1726584190492,27.451,134.21,134.2,0.2612813]
[1726584190668,20.0,134.21,134.2,0.2612813]
[1726584190864,7.4506,134.22,134.2,0.2612813]
[1726584190865,6.2093,134.25,134.2,0.2612813]
[1726584191065,13.8041,134.28,134.24,7.4492]
[1726584191268,6.3568,134.28,134.23,18.6243]
[1726584191475,6.3568,134.28,134.26,7.4478]
[1726584191772,6.3568,134.28,134.26,26.0682]
[1726584192174,6.3568,134.28,134.23,18.6246]
[1726584192479,7.4482,134.26,134.23,18.6246]
[1726584192664,6.3568,134.28,134.23,18.6246]
[1726584192860,6.3568,134.28,134.25,7.4487]
[1726584193086,6.3568,134.28,134.27,7.4476]
[1726584193394,6.3568,134.28,134.26,18.6201]
[1726584193766,13.8041,134.28,134.23,26.0731]
[1726584193994,6.3568,134.28,134.23,26.0731]
[1726584194174,13.804,134.28,134.24,7.4493]
[1726584194491,6.3568,134.28,134.22,0.25098]
[1726584194673,6.3568,134.28,134.25,18.6217]
[1726584195997,6.3568,134.28,134.27,7.4476]
[1726584196587,13.5804,134.32,134.28,7.4468]
[1726584197192,20.0,134.31,134.28,7.4468]
[1726584197605,6.1354,134.32,134.29,7.4464]
[1726584198305,1.48774842,134.31,134.27,18.6184]
[1726584198690,6.1354,134.32,134.27,18.6184]
[1726584198889,13.5803,134.32,134.28,7.4471]
[1726584199811,13.5803,134.32,134.27,18.6184]
[1726584199812,1.48774842,134.31,134.27,26.0659]
[1726584200104,6.1354,134.32,134.29,18.6156]
[1726584200295,0.2612813,134.34,134.32,7.4449]
[1726584201000,0.2612813,134.34,134.33,7.4443]
[1726584201202,0.2612813,134.34,134.32,7.4447]
[1726584201389,0.2612813,134.34,134.31,26.0584]
[1726584201588,0.2612813,134.34,134.31,18.6131]
[1726584201782,0.2612813,134.34,134.31,26.0585]
[1726584202303,0.2612813,134.34,134.31,18.6131]
[1726584202508,0.2612813,134.34,134.29,7.4464]
[1726584202889,7.7053813,134.34,134.3,7.4459]
[1726584203100,0.2612813,134.34,134.3,7.4459]
[1726584203406,0.2612813,134.34,134.31,7.4453]
[1726584203782,7.7050813,134.34,134.3,26.0606]
[1726584204802,7.4444,134.33,134.3,18.6147]
[1726584205008,8.93214842,134.33,134.29,7.4464]
[1726584205805,7.4443,134.33,134.29,7.4463]
[1726584206106,0.2612813,134.34,134.31,7.4453]
[1726584206302,20.2612813,134.34,134.29,18.615]
[1726584206490,7.4454,134.32,134.28,7.447]
[1726584206910,7.4455,134.31,134.27,7.4472]
[1726584207093,7.4455,134.31,134.26,26.0671]
[1726584207094,7.446,134.3,134.26,26.0671]
[1726584207496,8.93334842,134.31,134.27,7.4476]
[1726584207897,7.446,134.3,134.26,26.0673]
[1726584208987,6.6257,134.27,134.2,18.8889813]
[1726584209189,6.6257,134.27,134.22,18.6251]
[1726584209417,6.6257,134.27,134.25,7.4487]
[1726584210216,33.5555,134.31,134.27,7.4476]
[1726584210417,26.1097,134.31,134.26,18.6201]
[1726584210712,7.4461,134.3,134.26,18.6201]
[1726584210892,33.5552,134.31,134.26,18.6201]
[1726584211092,7.4461,134.3,134.26,18.6201]
[1726584211289,8.93434842,134.29,134.26,18.6201]
[1726584211506,8.93434842,134.29,134.25,7.4486]
[1726584211683,7.4466,134.29,134.25,7.4486]
[1726584211884,7.446,134.3,134.26,7.4481]
[1726584212090,20.0,134.29,134.26,7.4481]
[1726584213002,20.0,134.3,134.26,7.4481]
[1726584213212,20.0,134.3,134.25,18.6213]
[1726584213598,21.48774842,134.3,134.27,7.4475]
[1726584213802,21.48774842,134.3,134.25,18.6213]
[1726584214204,28.93374842,134.3,134.25,18.6213]
[1726584214464,27.446,134.3,134.26,7.4481]
[1726584215819,20.0,134.3,134.27,7.4476]
[1726584216120,27.446,134.3,134.26,7.448]
[1726584216305,28.93374842,134.3,134.26,31.224884]
[1726584216504,1.48774842,134.29,134.26,7.448]
[1726584216698,1.48774842,134.29,134.21,37.2525]
[1726584217091,8.93424842,134.29,134.25,7.4487]
[1726584217307,20.0,134.28,134.25,7.4487]
[1726584217597,28.93484842,134.28,134.24,26.0722]
[1726584217799,1.48774842,134.28,134.25,7.4484]
[1726584218014,1.48774842,134.29,134.25,7.4484]
[1726584218415,7.4471,134.28,134.24,26.0722]
[1726584218715,7.4471,134.28,134.24,18.6231]
[1726584219921,1.48774842,134.29,134.24,18.6231]
[1726584220512,20.0,134.3,134.26,18.6205]
[1726584220823,27.4463,134.3,134.26,26.0686]
[1726584221205,20.0,134.3,134.27,7.4476]
[1726584222209,27.446,134.3,134.27,7.4476]
[1726584223004,6.1097,134.31,134.28,18.6176]
[1726584223202,6.1097,134.31,134.29,7.4462]
[1726584224109,1.48774842,134.3,134.25,42.397784]
[1726584224901,8.93374842,134.3,134.25,42.397784]
[1726584226199,1.48774842,134.29,134.26,7.448]
[1726584226411,8.93374842,134.3,134.26,7.448]
[1726584227213,7.446,134.3,134.27,7.4476]
[1726584228426,7.446,134.3,134.26,7.4481]
[1726584229305,1.48774842,134.29,134.22,18.6248]
[1726584229510,1.48774842,134.29,134.21,7.4506]
[1726584229835,7.4484,134.26,134.21,26.0766]
[1726584230132,8.93664842,134.25,134.21,26.0766]
[1726584230305,1.48774842,134.24,134.21,26.0766]
[1726584230725,7.4484,134.26,134.22,7.4503]
[1726584230908,38.6151,134.3,134.21,18.6262]
[1726584231229,0.12549,134.29,134.21,18.6262]
[1726584231606,20.0,134.26,134.23,18.6244]
[1726584231937,22.96904874,134.3,134.23,18.6244]
[1726584231938,27.4477,134.27,134.23,18.6244]
[1726584232134,1.48774842,134.26,134.23,18.6244]
[1726584232599,8.93594842,134.26,134.23,18.6244]
[1726584232806,7.4482,134.26,134.23,18.6244]
[1726584233003,1.48774842,134.29,134.23,18.6244]
[1726584233203,7.4478,134.27,134.23,18.6244]
[1726584233411,21.48774842,134.26,134.23,18.6244]
[1726584233803,1.61323842,134.3,134.25,18.6212]
[1726584234007,6.1097,134.31,134.25,18.6212]
[1726584234008,7.4469,134.29,134.25,26.0698]
[1726584234212,8.93504842,134.28,134.23,7.4494]
[1726584234411,8.93504842,134.28,134.22,42.401984]
[1726584234626,7.4481,134.27,134.22,49.851884]
[1726584234816,1.48774842,134.26,134.23,7.4497]
[1726584235230,1.48774842,134.26,134.22,42.401984]
[1726584235532,7.4481,134.27,134.22,42.401984]
[1726584235833,7.4481,134.27,134.23,7.4494]
[1726584236427,20.0,134.3,134.24,18.623]
[1726584236955,20.0,134.28,134.25,7.4484]
[1726584238443,20.0,134.28,134.24,26.0721]
[1726584238629,1.48774842,134.27,134.24,26.0721]
[1726584238818,8.93524842,134.28,134.24,26.0721]
[1726584239020,7.4481,134.27,134.23,7.4495]
[1726584240234,1.48774842,134.26,134.23,7.4495]
[1726584240432,7.4481,134.27,134.24,7.4493]
[1726584240615,20.0,134.3,134.24,7.4493]
[1726584240814,7.4464,134.3,134.26,7.4481]
[1726584241016,13.5553,134.31,134.27,7.4476]
[1726584241625,6.1097,134.31,134.28,7.447]
[1726584241934,13.5551,134.31,134.27,26.0662]
[1726584242429,6.1097,134.31,134.28,7.4471]
[1726584242608,6.1097,134.31,134.29,7.4463]
[1726584242811,6.1097,134.31,134.29,18.6162]
[1726584243629,6.1097,134.31,134.29,26.0626]
[1726584244464,13.7864813,134.34,134.3,7.446]
[1726584244643,6.3424813,134.34,134.31,18.6129]
[1726584244971,6.3424813,134.34,134.32,7.4445]
[1726584244972,0.2612813,134.34,134.32,7.4445]
[1726584245114,0.2612813,134.34,134.33,7.4443]
[1726584245313,0.2612813,134.34,134.31,18.6129]
[1726584245314,0.2612813,134.34,134.32,7.4447]
[1726584245538,0.2612813,134.34,134.31,18.6129]
[1726584245717,0.2612813,134.34,133.85,697.15025037]
[1726584245718,21.7419,134.33,134.25,0.12549]
[1726584246032,21.7419,134.33,134.19,21.5788]
[1726584246033,21.61323842,134.32,134.19,21.5788]
[1726584246234,1.48774842,134.31,134.19,21.5788]
[1726584246548,20.0,134.3,134.25,18.6219]
[1726584246834,1.48774842,134.29,134.25,18.6219]
[1726584247647,20.0,134.3,134.25,18.6219]
[1726584247814,29.1866,134.33,134.27,7.4475]
[1726584248021,20.0,134.32,134.27,7.4475]
[1726584248615,6.1006,134.33,134.3,23.776884]
[1726584248923,0.2612813,134.34,134.31,7.4453]
[1726584249330,0.2612813,134.34,134.3,23.776884]
[1726584249811,0.2612813,134.34,134.25,18.6214]
[1726584249812,1.74902972,134.34,134.25,18.6214]
[1726584250020,27.4447,134.33,134.25,26.07]
[1726584250235,1.48774842,134.32,134.25,26.07]
[1726584250443,20.0,134.3,134.25,18.6214]
[1726584250735,7.4448,134.33,134.26,7.4481]
[1726584250921,20.0,134.32,134.25,18.6214]
[1726584251115,7.4448,134.33,134.25,18.6214]
[1726584251322,7.4443,134.33,134.27,7.4476]
[1726584251634,8.93274842,134.32,134.25,18.6214]
[1726584251829,7.445,134.32,134.26,24.027864]
[1726584252031,20.0,134.33,134.28,23.776884]
[1726584252846,1.48774842,134.33,134.28,42.394284]
[1726584253054,0.2612813,134.34,134.3,7.4454]
[1726584253223,0.2612813,134.34,134.28,49.840884]
[1726584253421,7.7050813,134.34,134.28,49.840884]
[1726584253727,7.4449,134.32,134.28,42.394284]
[1726584253934,0.2612813,134.34,134.28,42.394284]
[1726584254147,8.93204842,134.33,134.28,49.841284]
[1726584256528,8.93264842,134.32,134.28,42.394284]
[1726584256723,7.4449,134.32,134.28,42.394284]
[1726584256921,7.446,134.3,134.26,23.776884]
[1726584257232,7.446,134.3,134.25,26.0699]
[1726584257551,0.2612813,134.34,134.25,18.6216]
[1726584257758,7.4449,134.32,134.27,7.4472]
[1726584258052,7.4449,134.32,134.28,7.447]
[1726584258426,0.2612813,134.34,134.25,18.6216]
[1726584258427,8.93324842,134.31,134.27,7.4476]
[1726584258644,7.4455,134.31,134.27,7.4476]
[1726584258950,8.93374842,134.3,134.26,23.776884]
[1726584259250,0.2612813,134.34,134.31,7.4453]
[1726584259477,0.2612813,134.34,134.31,18.613]
[1726584262455,1.48774842,134.33,134.28,18.6171]
[1726584262755,7.4445,134.33,134.28,26.064]
[1726584262925,0.2612813,134.34,134.25,26.0701]
[1726584263524,7.4466,134.29,134.24,7.4492]
[1726584263727,20.0,134.32,134.25,7.4482]
[1726584263924,21.48774842,134.32,134.25,7.4482]
[1726584264451,21.48774842,134.32,134.24,18.622]
[1726584264748,7.4475,134.28,134.24,18.622]
[1726584264953,7.4475,134.28,134.24,26.0713]
[1726584265123,7.4475,134.28,134.24,18.622]
[1726584265331,8.93554842,134.27,134.23,7.4497]
[1726584265641,7.4483,134.26,134.22,7.4504]
[1726584266845,7.4503,134.23,134.2,0.2612813]
[1726584267030,8.93654842,134.25,134.2,7.7123813]
[1726584267352,7.4483,134.26,134.21,7.4509]
[1726584267736,8.93654842,134.25,134.2,26.3407813]
[1726584268058,1.48774842,134.24,134.2,26.3407813]
[1726584268346,7.4488,134.25,134.2,26.3407813]
[1726584268941,8.93714842,134.24,134.2,26.3407813]
[1726584269139,7.4494,134.24,134.2,26.3407813]
[1726584269331,7.4494,134.24,134.2,18.8893813]
[1726584269530,1.48774842,134.23,134.2,18.8893813]
[1726584270535,1.48774842,134.23,134.2,0.2612813]
[1726584270833,7.4505,134.22,134.2,0.2612813]
[1726584271049,8.93824842,134.22,134.2,0.2612813]
[1726584271233,7.451,134.21,134.2,0.2612813]
[1726584271854,7.4505,134.22,134.2,0.2612813]
[1726584272240,6.2941,134.23,134.2,0.2612813]
[1726584272548,13.7441,134.23,134.2,0.2612813]
[1726584272757,7.4504,134.22,134.2,0.2612813]
[1726584272933,8.93814842,134.22,134.2,0.2612813]
[1726584273952,7.451,134.21,134.2,0.2612813]
[1726584275535,7.4506,134.22,134.2,0.2612813]
[1726584275738,7.451,134.21,134.2,0.2612813]
[1726584275948,7.4506,134.22,134.2,0.2612813]
[1726584276966,8.93874842,134.21,134.2,0.2612813]
[1726584277837,7.451,134.21,134.2,0.2612813]
[1726584278041,7.4506,134.22,134.2,0.2612813]
[1726584278740,7.451,134.21,134.2,0.2612813]
[1726584278937,8.93874842,134.21,134.2,0.2612813]
[1726584281638,47.69173842,134.21,134.2,0.2612813]
[1726584282153,20.0,134.21,134.2,0.2612813]
[1726584283138,27.451,134.21,134.2,0.2612813]
[1726584284066,27.451,134.21,134.2,8.13e-05]
[1726584284067,27.70198,134.21,134.2,8.13e-05]
[1726584284362,27.70198,134.21,134.16,0.2612813]
[1726584284363,46.0862,134.17,134.16,0.2612813]
[1726584284740,27.4532,134.17,134.16,0.2612813]
[1726584285660,20.12549,134.21,134.16,0.2612813]
[1726584285958,0.12549,134.22,134.16,0.2612813]
[1726584286150,7.452,134.2,134.16,0.2612813]
[1726584286844,7.4523,134.19,134.16,0.2612813]
[1726584287472,7.4516,134.2,134.16,0.2612813]
[1726584287645,7.4513,134.21,134.16,7.7145813]
[1726584287843,20.0,134.2,134.16,7.7145813]
[1726584288568,6.2941,134.23,134.17,18.6321]
[1726584288764,6.2941,134.23,134.19,7.4516]
[1726584289069,13.744,134.23,134.19,18.6292]
[1726584289274,6.2941,134.23,134.16,42.6722653]
[1726584289565,13.7444,134.23,134.18,7.4525]
[1726584290959,1.48774842,134.22,134.18,7.4525]
[1726584291160,8.93834842,134.22,134.17,7.4531]
[1726584292372,8.93874842,134.21,134.16,18.8953813]
[1726584292662,7.4506,134.22,134.16,26.3490813]
[1726584292870,27.4506,134.22,134.16,26.3490813]
[1726584293244,6.2941,134.23,134.2,18.6283]
[1726584293746,6.2941,134.23,134.18,7.4526]
[1726584293960,7.78184842,134.23,134.18,23.776884]
[1726584294164,13.744,134.23,134.17,26.0854]
[1726584294355,1.48774842,134.22,134.17,26.0854]
[1726584294752,20.0,134.25,134.21,7.4508]
[1726584294960,20.0,134.25,134.2,7.4514]
[1726584295148,27.4492,134.25,134.19,7.452]
[1726584295865,7.4493,134.24,134.19,18.6301]
[1726584296067,1.48774842,134.23,134.19,18.6301]
[1726584296369,1.48774842,134.23,134.18,7.4526]
[1726584296575,7.4493,134.24,134.18,7.4526]
[1726584297571,8.93704842,134.24,134.18,7.4526]
[1726584297863,7.4493,134.24,134.19,7.4521]
[1726584298171,27.4488,134.25,134.19,7.4521]
[1726584298369,22.7881,134.26,134.21,7.4505]
[1726584298541,8.93664842,134.25,134.19,7.452]
[1726584298941,7.4493,134.24,134.18,7.4526]
[1726584299171,1.48774842,134.23,134.18,7.4526]
[1726584299966,8.93764842,134.23,134.17,49.862484]
[1726584300271,7.4511,134.21,134.16,0.2612813]
[1726584300474,7.4504,134.22,134.16,7.7148813]
[1726584300648,20.0,134.22,134.17,7.4531]
[1726584300847,1.48774842,134.21,134.16,26.3485813]
[1726584301051,1.48774842,134.2,134.16,18.8948813]
[1726584301373,20.0,134.22,134.16,18.8948813]
[1726584301374,20.0,134.25,134.2,7.4514]
[1726584301665,30.36189,134.26,134.2,7.4514]
[1726584301865,22.7881,134.26,134.2,18.6281]
[1726584302165,6.2602,134.26,134.2,18.6281]
[1726584302377,6.5228813,134.3,134.29,7.4465]
[1726584302674,0.2612813,134.3,134.29,7.4465]
[1726584302974,0.2612813,134.3,134.29,26.0629]
[1726584303345,0.2612813,134.3,134.29,49.839784]
[1726584303767,0.2612813,134.3,134.29,42.393284]
[1726584303970,0.2612813,134.3,134.27,23.776884]
[1726584304499,0.2612813,134.3,134.28,7.4465]
[1726584305375,0.2612813,134.3,134.27,31.224484]
[1726584306454,0.2612813,134.3,134.27,23.776884]
[1726584306855,0.2612813,134.3,134.29,7.4465]
[1726584307171,0.2612813,134.3,134.28,7.447]
[1726584308470,0.2612813,134.3,134.27,23.776884]
[1726584308471,0.2612813,134.3,134.29,26.0629]
[1726584309048,0.2612813,134.3,134.29,49.839784]
[1726584311480,0.2612813,134.3,134.29,50.090764]
[1726584311847,0.2612813,134.3,134.29,49.839784]
[1726584312452,0.2612813,134.3,134.29,50.090764]
[1726584315855,0.2612813,134.3,134.29,107.47375829]
[1726584316265,0.2612813,134.3,134.29,123.80385829]
[1726584316559,0.2612813,134.3,134.29,86.420864]
[1726584317661,0.2612813,134.3,134.29,42.64398]
[1726584317883,0.2612813,134.3,134.29,26.0629]
[1726584318687,0.2612813,134.3,134.26,34.7469]
[1726584318981,0.2612813,134.3,134.25,18.6214]
[1726584319157,0.2612813,134.3,134.27,7.4475]
[1726584319361,20.0,134.28,134.19,18.6302]
[1726584319683,1.48774842,134.27,134.19,18.6302]
[1726584319858,8.93554842,134.27,134.19,18.6302]
[1726584320492,1.48774842,134.28,134.25,7.4486]
[1726584320660,22.52,134.29,134.24,7.4492]
[1726584320968,22.52,134.29,134.24,31.226084]
[1726584321364,1.48774842,134.28,134.24,23.776884]
[1726584321756,8.93494842,134.28,134.23,18.6237]
[1726584322161,22.52,134.29,134.23,26.0734]
[1726584322375,22.52,134.29,134.26,7.448]
[1726584322594,22.52,134.29,134.27,7.4476]
[1726584322595,6.1867,134.29,134.27,7.4476]
[1726584322763,6.1867,134.29,134.26,31.224984]
[1726584323354,6.1867,134.29,134.26,7.4481]
[1726584324684,0.2612813,134.3,134.27,7.4476]
[1726584324887,0.2612813,134.3,134.28,7.447]
[1726584325086,0.2612813,134.3,134.29,31.223384]
[1726584325269,0.2612813,134.3,134.29,31.76701428]
[1726584325582,0.2612813,134.3,134.29,31.223384]
[1726584326079,0.2612813,134.3,134.29,7.4465]
[1726584326282,0.2612813,134.3,134.27,18.6182]
[1726584327164,0.2612813,134.3,134.29,7.4465]
[1726584327383,0.2612813,134.3,134.29,31.223384]
[1726584329975,0.2612813,134.3,134.28,31.223784]
[1726584330380,0.2612813,134.3,134.29,7.4465]
[1726584330595,0.2612813,134.3,134.29,31.223384]
[1726584330877,0.2612813,134.3,134.29,31.348874]
[1726584331092,0.2612813,134.3,134.29,31.474364]
[1726584331587,0.2612813,134.3,134.29,51.474364]
[1726584332568,0.2612813,134.3,134.29,31.474364]
[1726584336084,0.2612813,134.3,134.29,51.474364]
[1726584336891,0.2612813,134.3,134.29,31.474364]
[1726584338968,0.2612813,134.3,134.29,31.223384]
[1726584339286,0.2612813,134.3,134.27,18.6182]
[1726584339585,0.2612813,134.3,134.29,7.4465]
[1726584340369,0.2612813,134.3,134.29,7.57199]
[1726584340783,0.2612813,134.3,134.29,9.06074513]
[1726584340990,0.2612813,134.3,134.29,82.18778429]
[1726584341463,0.2612813,134.3,134.29,31.474364]
[1726584341681,0.2612813,134.3,134.29,32.96300151]
[1726584341883,0.2612813,134.3,134.29,31.474364]
[1726584342680,0.2612813,134.3,134.29,68.85735829]
[1726584343076,0.2612813,134.34,134.29,68.85735829]
[1726584343077,0.2612813,134.34,134.33,26.0551]
[1726584343274,0.2612813,134.34,134.33,50.082964]
[1726584343483,0.2612813,134.34,134.33,49.831984]
[1726584344787,0.2612813,134.34,134.33,50.082964]
[1726584345386,0.2612813,134.34,134.33,23.776884]
[1726584345693,0.2612813,134.34,134.31,7.4449]
[1726584345888,0.2612813,134.34,134.33,7.4443]
[1726584346271,0.2612813,134.34,134.33,9.05768214]
[1726584346472,0.2612813,134.34,134.33,7.56979]
[1726584346671,0.2612813,134.34,134.33,31.472164]
[1726584347192,0.2612813,134.34,134.33,23.776884]
[1726584347509,0.2612813,134.34,134.32,7.4444]
[1726584347798,0.2612813,134.34,134.33,7.4443]
[1726584349078,0.2612813,134.34,134.33,31.221184]
[1726584349537,0.2612813,134.34,134.33,31.472164]
[1726584350207,0.2612813,134.34,134.33,32.96050839]
[1726584350395,0.2612813,134.34,134.33,31.472164]
[1726584351073,0.2612813,134.34,134.33,31.221184]
[1726584351675,0.2612813,134.34,134.33,7.4443]
[1726584351898,0.2612813,134.34,134.31,18.6128]
[1726584351899,0.2612813,134.34,134.32,7.4447]
[1726584352605,0.2612813,134.34,134.33,7.4443]
[1726584352806,6.6345813,134.34,134.31,18.6128]
[1726584353094,6.6345813,134.34,134.31,20.10171496]
[1726584353314,6.6345813,134.34,134.33,7.4443]
[1726584353315,0.2612813,134.34,134.33,7.4443]
[1726584354082,0.2612813,134.34,134.33,31.221184]
[1726584354509,0.2612813,134.34,134.33,31.472164]
[1726584356715,5.92535019,134.37,134.35,7.4428]
[1726584357093,5.92535019,134.37,134.34,26.052]
[1726584357291,1.48774842,134.36,134.3,18.6137]
[1726584357508,13.36775019,134.37,134.33,7.4443]
[1726584357706,5.92535019,134.37,134.34,7.4437]
[1726584358097,7.41309861,134.37,134.33,7.4441]
[1726584358612,0.2612813,134.38,134.35,18.6081]
[1726584358924,0.2612813,134.38,134.37,7.4421]